bitfinex/quotes_BTCUSD_20240731
["timestamp","ask_amount","ask_price","bid_price","bid_amount"]
[1722398576982,0.62952134,66221.0,66220.0,0.1435614]
[1722398577188,0.32750334,66221.0,66220.0,0.1435614]
[1722398577596,0.62552134,66221.0,66220.0,0.1435614]
[1722398578022,0.32350334,66221.0,66220.0,0.1465614]
[1722398578427,0.32350334,66221.0,66220.0,0.1455614]
[1722398578633,0.32434014,66221.0,66220.0,0.1455614]
[1722398579597,0.62635814,66221.0,66220.0,0.1455614]
[1722398580010,0.92837614,66221.0,66220.0,0.0040614]
[1722398581214,0.9279254,66221.0,66220.0,0.0040614]
[1722398581620,0.92810467,66221.0,66220.0,0.0040614]
[1722398581847,0.76746117,66221.0,66220.0,0.0040614]
[1722398582043,0.92810469,66221.0,66220.0,0.0040614]
[1722398583838,0.92792536,66221.0,66220.0,0.0040614]
[1722398584246,0.76746117,66221.0,66220.0,0.0040614]
[1722398584446,0.92792536,66221.0,66220.0,0.0040614]
[1722398584665,0.62590736,66221.0,66220.0,0.0040614]
[1722398585307,0.92792536,66221.0,66220.0,0.0040614]
[1722398587164,0.62590736,66221.0,66220.0,0.0040614]
[1722398587609,0.92792536,66221.0,66220.0,0.0040614]
[1722398587825,0.626333,66221.0,66220.0,0.0040614]
[1722398588024,0.928351,66221.0,66220.0,0.0040614]
[1722398590146,1.07904532,66221.0,66220.0,0.0040614]
[1722398590356,1.52256332,66221.0,66220.0,0.0040614]
[1722398590548,1.371869,66221.0,66220.0,0.0040614]
[1722398591392,1.37024451,66221.0,66220.0,0.0010614]
[1722398591539,1.37324451,66221.0,66220.0,0.0010614]
[1722398591867,1.37284169,66221.0,66220.0,0.0010614]
[1722398593652,1.37286139,66221.0,66220.0,0.0010614]
[1722398594428,1.21397917,66221.0,66220.0,0.0010614]
[1722398594620,1.36898289,66221.0,66220.0,0.0010614]
[1722398597748,1.30886734,66221.0,66220.0,0.0010614]
[1722398597939,1.46458941,66221.0,66220.0,0.0010614]
[1722398601254,1.46376976,66221.0,66220.0,0.0010614]
[1722398601756,1.30886734,66221.0,66220.0,0.0010614]
[1722398601958,1.36888473,66221.0,66220.0,0.0010614]
[1722398603355,1.3779777,66221.0,66220.0,0.00996757]
[1722398603662,1.37837688,66221.0,66220.0,0.00996757]
[1722398604293,1.37837688,66221.0,66220.0,0.0010614]
[1722398604513,1.22307214,66221.0,66220.0,0.0010614]
[1722398604683,1.3780203,66221.0,66220.0,0.0010614]
[1722398606181,1.6800383,66221.0,66220.0,0.0010614]
[1722398606376,1.3780203,66221.0,66220.0,0.0010614]
[1722398607763,1.67982603,66221.0,66220.0,0.0010614]
[1722398607985,1.37780803,66221.0,66220.0,0.0010614]
[1722398608389,1.77982603,66221.0,66220.0,0.0010614]
[1722398608727,1.47480803,66221.0,66220.0,0.0010614]
[1722398608926,1.47880803,66221.0,66220.0,0.0010614]
[1722398609257,1.78082603,66221.0,66220.0,0.0010614]
[1722398609428,1.79082603,66221.0,66220.0,0.0010614]
[1722398609662,1.81582603,66221.0,66220.0,0.0020614]
[1722398609837,2.11784403,66221.0,66220.0,0.0020614]
[1722398610089,2.26853835,66221.0,66220.0,0.0020614]
[1722398610295,2.25953835,66221.0,66220.0,0.0010614]
[1722398611363,2.41893835,66221.0,66220.0,0.0010614]
[1722398611737,2.45003727,66221.0,66220.0,0.0020614]
[1722398611980,2.45903727,66221.0,66220.0,0.0030614]
[1722398612128,2.45303727,66221.0,66220.0,0.0020614]
[1722398612333,1.504051,66208.0,66207.0,8.9e-07]
[1722398612552,2.16014577,66208.0,66207.0,8.9e-07]
[1722398613459,2.16011426,66208.0,66207.0,8.9e-07]
[1722398613642,2.16511426,66208.0,66207.0,0.00100089]
[1722398613831,2.02073058,66208.0,66207.0,0.00100089]
[1722398614501,2.02100231,66208.0,66207.0,0.00100089]
[1722398615121,2.01600231,66208.0,66207.0,0.00100089]
[1722398615405,2.02100231,66208.0,66207.0,0.00100089]
[1722398615758,2.01400231,66208.0,66207.0,8.9e-07]
[1722398615972,2.02100231,66208.0,66207.0,8.9e-07]
[1722398617764,2.02151445,66208.0,66207.0,8.9e-07]
[1722398620399,2.08208245,66208.0,66207.0,8.9e-07]
[1722398620720,2.38416045,66208.0,66207.0,8.9e-07]
[1722398621182,2.22727214,66208.0,66207.0,8.9e-07]
[1722398621388,2.38384402,66208.0,66207.0,8.9e-07]
[1722398623117,2.37884402,66208.0,66207.0,8.9e-07]
[1722398623310,2.37184402,66208.0,66207.0,8.9e-07]
[1722398623512,2.21527214,66208.0,66207.0,8.9e-07]
[1722398623724,2.38181716,66208.0,66207.0,8.9e-07]
[1722398623929,2.37181716,66208.0,66207.0,8.9e-07]
[1722398624135,2.37981716,66208.0,66207.0,8.9e-07]
[1722398624550,2.38008841,66208.0,66207.0,8.9e-07]
[1722398625409,2.38208841,66208.0,66207.0,8.9e-07]
[1722398625822,2.38908841,66208.0,66207.0,8.9e-07]
[1722398626231,2.39803986,66208.0,66207.0,8.9e-07]
[1722398627279,2.38103986,66208.0,66207.0,8.9e-07]
[1722398627818,2.38070614,66208.0,66207.0,8.9e-07]
[1722398628428,2.39170614,66208.0,66207.0,8.9e-07]
[1722398628634,2.40086991,66208.0,66207.0,8.9e-07]
[1722398628812,2.38986991,66208.0,66207.0,8.9e-07]
[1722398629019,2.38086991,66208.0,66207.0,8.9e-07]
[1722398629218,2.39486991,66208.0,66207.0,8.9e-07]
[1722398629417,2.89834791,66208.0,66207.0,8.9e-07]
[1722398629856,2.87834791,66208.0,66207.0,8.9e-07]
[1722398630262,2.86634791,66208.0,66207.0,8.9e-07]
[1722398630957,2.56426991,66208.0,66207.0,8.9e-07]
[1722398631319,2.41385757,66208.0,66207.0,8.9e-07]
[1722398631694,2.24292927,66208.0,66207.0,8.9e-07]
[1722398631892,2.16226108,66208.0,66207.0,8.9e-07]
[1722398632139,2.17626108,66208.0,66207.0,8.9e-07]
[1722398632292,2.3139554,66208.0,66207.0,8.9e-07]
[1722398632493,2.2999554,66208.0,66207.0,8.9e-07]
[1722398632750,2.3259554,66208.0,66207.0,8.9e-07]
[1722398632949,2.0238774,66208.0,66207.0,8.9e-07]
[1722398633271,1.8734774,66208.0,66207.0,8.9e-07]
[1722398633472,1.80968308,66208.0,66207.0,8.9e-07]
[1722398634536,1.80983806,66208.0,66207.0,8.9e-07]
[1722398636362,1.80983806,66208.0,66207.0,0.08280089]
[1722398637997,1.71422894,66208.0,66207.0,0.08280089]
[1722398638219,1.80978258,66208.0,66207.0,0.08280089]
[1722398639989,1.80978258,66208.0,66207.0,8.9e-07]
[1722398640238,1.88208662,66208.0,66207.0,8.9e-07]
[1722398640634,2.01918662,66208.0,66207.0,8.9e-07]
[1722398640839,2.01867364,66208.0,66207.0,8.9e-07]
[1722398641453,1.86215531,66208.0,66207.0,8.9e-07]
[1722398641658,2.01848562,66208.0,66207.0,8.9e-07]
[1722398643178,1.94618158,66208.0,66207.0,8.9e-07]
[1722398643379,1.94601246,66208.0,66207.0,8.9e-07]
[1722398643786,1.94601358,66208.0,66207.0,8.9e-07]
[1722398644211,1.86901358,66208.0,66207.0,8.9e-07]
[1722398644413,1.64230439,66208.0,66207.0,0.13920089]
[1722398644622,0.95728958,66208.0,66207.0,0.13920089]
[1722398644979,1.25936758,66208.0,66207.0,0.13920089]
[1722398645186,0.94833813,66208.0,66207.0,0.13920089]
[1722398645387,1.25041613,66208.0,66207.0,0.13920089]
[1722398645704,0.93433813,66208.0,66207.0,0.13920089]
[1722398645892,1.23741613,66208.0,66207.0,0.13920089]
[1722398646087,1.32541613,66208.0,66207.0,0.13920089]
[1722398646524,1.33641613,66208.0,66207.0,0.13920089]
[1722398646992,1.33638637,66208.0,66207.0,0.13920089]
[1722398648029,1.32538637,66208.0,66207.0,0.13920089]
[1722398649553,1.56298069,66208.0,66207.0,0.07890089]
[1722398649762,1.56298069,66208.0,66207.0,8.9e-07]
[1722398650360,1.56274303,66208.0,66207.0,8.9e-07]
[1722398650687,1.78529174,66208.0,66207.0,8.9e-07]
[1722398650869,1.62943822,66208.0,66207.0,8.9e-07]
[1722398651058,1.7853331,66208.0,66207.0,8.9e-07]
[1722398651255,1.7843331,66208.0,66207.0,8.9e-07]
[1722398651664,1.56374302,66208.0,66207.0,8.9e-07]
[1722398651865,1.56174302,66208.0,66207.0,8.9e-07]
[1722398652181,1.86682102,66208.0,66207.0,8.9e-07]
[1722398652719,1.86765552,66208.0,66207.0,8.9e-07]
[1722398653580,1.86665552,66208.0,66207.0,8.9e-07]
[1722398654435,1.86365552,66208.0,66207.0,8.9e-07]
[1722398654632,2.01265552,66208.0,66207.0,8.9e-07]
[1722398655033,2.01865552,66208.0,66207.0,8.9e-07]
[1722398655498,2.01265552,66208.0,66207.0,8.9e-07]
[1722398655907,2.02165552,66208.0,66207.0,8.9e-07]
[1722398656072,2.01365552,66208.0,66207.0,8.9e-07]
[1722398656278,2.02565552,66208.0,66207.0,8.9e-07]
[1722398657080,1.86992614,66208.0,66207.0,8.9e-07]
[1722398657302,2.02606804,66208.0,66207.0,8.9e-07]
[1722398659412,2.01706804,66208.0,66207.0,8.9e-07]
[1722398659614,2.02906804,66208.0,66207.0,8.9e-07]
[1722398660511,1.87292614,66208.0,66207.0,8.9e-07]
[1722398660619,2.01791892,66208.0,66207.0,8.9e-07]
[1722398661039,2.03191907,66208.0,66207.0,8.9e-07]
[1722398661269,2.01991907,66208.0,66207.0,8.9e-07]
[1722398661472,2.01791907,66208.0,66207.0,8.9e-07]
[1722398661652,2.03191907,66208.0,66207.0,8.9e-07]
[1722398662917,2.03212913,66208.0,66207.0,8.9e-07]
[1722398663128,1.80422913,66208.0,66207.0,8.9e-07]
[1722398663326,1.89112913,66208.0,66207.0,8.9e-07]
[1722398663644,1.89205052,66208.0,66207.0,8.9e-07]
[1722398666514,1.7413562,66208.0,66207.0,8.9e-07]
[1722398667930,1.8196562,66208.0,66207.0,8.9e-07]
[1722398668157,1.8859562,66208.0,66207.0,8.9e-07]
[1722398670286,2.18779781,66208.0,66207.0,8.9e-07]
[1722398670751,1.72783182,66208.0,66207.0,8.9e-07]
[1722398670956,2.03657022,66208.0,66207.0,8.9e-07]
[1722398671752,1.8858759,66208.0,66207.0,8.9e-07]
[1722398672112,1.8075759,66208.0,66207.0,8.9e-07]
[1722398673220,1.7412759,66208.0,66207.0,8.9e-07]
[1722398673606,1.74239914,66208.0,66207.0,8.9e-07]
[1722398675865,2.04447714,66208.0,66207.0,8.9e-07]
[1722398676081,1.89309346,66208.0,66207.0,8.9e-07]
[1722398676626,2.25877146,66208.0,66207.0,8.9e-07]
[1722398676831,2.12330584,66208.0,66207.0,8.9e-07]
[1722398677057,2.2820273,66208.0,66207.0,8.9e-07]
[1722398678259,2.3682273,66208.0,66207.0,8.9e-07]
[1722398678443,2.3445256,66208.0,66207.0,8.9e-07]
[1722398678829,2.3682277,66208.0,66207.0,8.9e-07]
[1722398680141,2.20950624,66208.0,66207.0,8.9e-07]
[1722398680335,2.36808392,66208.0,66207.0,8.9e-07]
[1722398680602,2.55048392,66208.0,66207.0,8.9e-07]
[1722398680797,2.55052425,66208.0,66207.0,8.9e-07]
[1722398681535,0.01,66204.0,66197.0,0.0015542]
[1722398681751,1.446453,66198.0,66197.0,0.0015542]
[1722398681958,0.755342,66195.0,66194.0,0.0015542]
[1722398682305,1.60513401,66195.0,66194.0,0.0015542]
[1722398682456,1.76416591,66195.0,66194.0,0.0015542]
[1722398682675,1.61347159,66195.0,66194.0,0.0015542]
[1722398683092,1.359639,66194.0,66193.0,0.0538542]
[1722398683297,1.51769842,66194.0,66193.0,0.0538542]
[1722398683498,1.5267071,66194.0,66193.0,0.0538542]
[1722398685034,1.5307071,66194.0,66193.0,0.0538542]
[1722398685189,1.5377071,66194.0,66193.0,0.0538542]
[1722398686428,1.68840142,66194.0,66193.0,0.0538542]
[1722398686850,1.68843142,66194.0,66193.0,0.0538542]
[1722398687061,1.68443142,66194.0,66193.0,0.0538542]
[1722398687263,1.69143142,66194.0,66193.0,0.0538542]
[1722398687906,1.67743142,66194.0,66193.0,0.1149542]
[1722398688112,1.78543142,66194.0,66193.0,0.0538542]
[1722398688344,1.359679,66192.0,66191.0,0.0005]
[1722398688544,1.60478203,66192.0,66191.0,0.0005]
[1722398688744,1.61361282,66192.0,66191.0,0.0005]
[1722398690147,1.91595375,66192.0,66191.0,0.0005]
[1722398690347,1.71380275,66192.0,66191.0,0.0005]
[1722398690555,1.86449707,66192.0,66191.0,0.0005]
[1722398690770,1.86395262,66192.0,66191.0,0.0005]
[1722398691167,1.86395262,66192.0,66171.0,0.0005]
[1722398691168,1.057686,66182.0,66181.0,0.07295]
[1722398691513,1.31553451,66182.0,66181.0,0.14915]
[1722398691713,1.32432292,66182.0,66181.0,0.14915]
[1722398692623,1.32932931,66182.0,66181.0,0.14915]
[1722398693402,1.32932792,66182.0,66181.0,0.14915]
[1722398694400,1.32632792,66182.0,66181.0,0.14915]
[1722398696638,1.32678357,66182.0,66181.0,0.14915]
[1722398697370,1.32678357,66182.0,66181.0,0.15095]
[1722398698144,1.32678357,66182.0,66181.0,0.00935]
[1722398698804,1.32578357,66182.0,66181.0,0.00935]
[1722398699050,1.32878357,66182.0,66181.0,0.00935]
[1722398699269,1.32978357,66182.0,66181.0,0.00935]
[1722398699505,1.32678357,66182.0,66181.0,0.00935]
[1722398699699,1.47647789,66182.0,66181.0,0.00935]
[1722398699982,1.47910429,66182.0,66181.0,0.00935]
[1722398700498,1.32840997,66182.0,66181.0,0.00935]
[1722398701484,1.33340997,66182.0,66181.0,0.00935]
[1722398702372,1.33295836,66182.0,66181.0,0.00935]
[1722398702631,1.27021258,66182.0,66181.0,0.00935]
[1722398702903,1.33295837,66182.0,66181.0,0.00935]
[1722398703408,1.62605269,66182.0,66181.0,0.00935]
[1722398703653,1.92824869,66182.0,66181.0,0.00935]
[1722398703888,1.98883869,66182.0,66181.0,0.00935]
[1722398704618,0.72656637,66182.0,66181.0,0.08625]
[1722398704884,0.42337037,66182.0,66181.0,0.14965]
[1722398705119,0.72556637,66182.0,66181.0,0.14965]
[1722398705403,0.73356637,66182.0,66181.0,0.14965]
[1722398705645,0.18088641,66182.0,66181.0,0.14965]
[1722398705920,0.25596533,66182.0,66181.0,0.14965]
[1722398706180,0.07186733,66182.0,66181.0,0.14965]
[1722398706418,0.07686733,66182.0,66181.0,0.14965]
[1722398707670,0.07886733,66182.0,66181.0,0.14965]
[1722398707906,0.07386733,66182.0,66181.0,0.14965]
[1722398708109,0.07686733,66182.0,66181.0,0.14965]
[1722398708350,0.22796533,66182.0,66181.0,0.14965]
[1722398708588,0.32498257,66182.0,66181.0,0.14965]
[1722398709120,0.99994847,66182.0,66181.0,0.08625]
[1722398709360,1.00094847,66182.0,66181.0,0.08625]
[1722398710114,1.30314447,66182.0,66181.0,0.00935]
[1722398710856,1.29914447,66182.0,66181.0,0.00935]
[1722398711326,1.30514447,66182.0,66181.0,0.00935]
[1722398711576,1.22642821,66182.0,66181.0,0.00935]
[1722398712070,1.23342821,66182.0,66181.0,0.00935]
[1722398712311,1.22919235,66182.0,66181.0,0.00935]
[1722398712799,1.07247441,66182.0,66181.0,0.00935]
[1722398713050,1.23507238,66182.0,66181.0,0.00935]
[1722398713994,1.22907238,66182.0,66181.0,0.00935]
[1722398714326,1.22907238,66182.0,66181.0,0.15175]
[1722398714327,0.32248438,66182.0,66181.0,0.15175]
[1722398714557,0.17438638,66182.0,66181.0,0.15175]
[1722398714817,0.07161572,66182.0,66181.0,0.605051]
[1722398715056,0.07661572,66182.0,66181.0,0.907252]
[1722398715308,0.00878841,66182.0,66181.0,0.907252]
[1722398715544,0.13550365,66186.0,66185.0,0.1482]
[1722398715788,0.13550365,66186.0,66185.0,0.296291]
[1722398715789,0.19832762,66186.0,66185.0,0.296291]
[1722398716026,0.19832762,66186.0,66185.0,0.596474]
[1722398716273,0.06282397,66186.0,66185.0,0.596474]
[1722398716530,0.0015542,66190.0,66187.0,0.151086]
[1722398716792,0.06222327,66189.0,66187.0,0.150086]
[1722398717046,0.0015542,66188.0,66187.0,0.150086]
[1722398717284,0.06222327,66188.0,66186.0,0.151089]
[1722398717543,0.06222327,66187.0,66185.0,0.29229]
[1722398717787,0.1534416,66190.0,66186.0,0.151089]
[1722398718047,0.06197264,66189.0,66186.0,0.151089]
[1722398718245,0.06297264,66189.0,66187.0,0.151086]
[1722398718445,0.001,66189.0,66188.0,0.151084]
[1722398718664,0.0629775,66189.0,66188.0,0.838122]
[1722398719069,0.19749534,66189.0,66188.0,0.838122]
[1722398719305,0.19749534,66189.0,66188.0,0.837122]
[1722398719509,0.0619775,66189.0,66188.0,0.233784]
[1722398719711,0.06210852,66190.0,66189.0,0.151082]
[1722398719915,0.00083,66191.0,66190.0,0.15008]
[1722398720118,0.06289971,66191.0,66190.0,0.15008]
[1722398720593,0.06289971,66191.0,66190.0,0.51794]
[1722398720810,0.06289971,66191.0,66190.0,0.51594]
[1722398721236,0.06289971,66191.0,66190.0,0.21378]
[1722398721357,0.07347911,66191.0,66190.0,0.21378]
[1722398721564,0.07287911,66191.0,66190.0,0.21378]
[1722398721768,0.0098094,66191.0,66190.0,0.21378]
[1722398721974,0.00023,66191.0,66190.0,0.21378]
[1722398722216,0.0108094,66191.0,66190.0,0.21378]
[1722398722443,0.07380738,66191.0,66190.0,0.21478]
[1722398722865,0.07220738,66191.0,66190.0,0.21378]
[1722398723079,0.07320738,66191.0,66190.0,0.21478]
[1722398723721,0.07320738,66191.0,66190.0,0.59644]
[1722398723925,0.07320738,66191.0,66190.0,0.8986]
[1722398724075,0.06302798,66191.0,66190.0,0.29428]
[1722398724283,0.06302798,66191.0,66190.0,0.59644]
[1722398724505,0.07260738,66191.0,66190.0,0.59644]
[1722398725086,0.07264866,66191.0,66190.0,0.59644]
[1722398727504,0.0106094,66191.0,66190.0,0.59644]
[1722398727707,0.14608268,66191.0,66190.0,0.59644]
[1722398728444,0.0106094,66191.0,66190.0,0.59644]
[1722398728614,0.20840958,66191.0,66190.0,0.59644]
[1722398728759,0.14607758,66191.0,66190.0,0.59644]
[1722398729356,0.20836676,66191.0,66190.0,0.59644]
[1722398729607,0.14607758,66191.0,66190.0,0.59644]
[1722398729805,0.14607758,66191.0,66190.0,0.29428]
[1722398729981,0.14607758,66191.0,66190.0,0.59644]
[1722398730808,0.14607758,66191.0,66190.0,0.29428]
[1722398731043,0.14607758,66191.0,66190.0,0.1462]
[1722398731244,0.20812414,66191.0,66190.0,0.29728]
[1722398731642,0.21285882,66191.0,66190.0,0.29728]
[1722398731845,0.21281606,66191.0,66190.0,0.29728]
[1722398732262,0.01534408,66191.0,66190.0,0.29728]
[1722398732465,0.1507627,66191.0,66190.0,0.29728]
[1722398732665,0.07730355,66191.0,66190.0,0.29728]
[1722398733659,0.07730355,66191.0,66190.0,0.59944]
[1722398735007,0.01534408,66191.0,66190.0,0.59944]
[1722398735166,0.01689828,66191.0,66190.0,0.59944]
[1722398735358,0.07793413,66191.0,66190.0,0.59944]
[1722398735983,0.07793413,66191.0,66190.0,0.29728]
[1722398736409,0.07793413,66191.0,66190.0,0.599606]
[1722398738365,0.07784115,66191.0,66190.0,0.599606]
[1722398739694,0.07778115,66191.0,66190.0,0.599606]
[1722398740569,0.07772115,66191.0,66190.0,0.599606]
[1722398740795,0.07772115,66191.0,66190.0,0.297446]
[1722398741641,0.83310815,66191.0,66190.0,0.001166]
[1722398741817,0.96840922,66191.0,66190.0,0.001166]
[1722398742020,0.83301049,66191.0,66190.0,0.001166]
[1722398742170,1.13526624,66191.0,66190.0,0.001166]
[1722398742602,0.98543482,66191.0,66190.0,0.001166]
[1722398742771,1.08194502,66191.0,66190.0,0.001166]
[1722398742972,0.92883144,66191.0,66190.0,0.000166]
[1722398743173,0.98457114,66191.0,66190.0,0.000166]
[1722398743602,1.08113699,66191.0,66190.0,0.000166]
[1722398743793,0.92876709,66191.0,66190.0,0.000166]
[1722398744036,0.92196287,66191.0,66190.0,0.000166]
[1722398744233,0.83222347,66191.0,66190.0,0.000166]
[1722398744441,0.92981803,66191.0,66190.0,0.000166]
[1722398744551,1.08113982,66191.0,66190.0,0.000166]
[1722398744752,1.08213982,66191.0,66190.0,0.001166]
[1722398744953,1.08208946,66191.0,66190.0,0.001166]
[1722398745159,0.92875059,66191.0,66190.0,0.001079]
[1722398745610,0.93113479,66191.0,66190.0,0.002079]
[1722398745864,0.93113479,66191.0,66190.0,0.001079]
[1722398746125,1.08191792,66191.0,66190.0,0.001079]
[1722398746324,0.92956002,66191.0,66190.0,0.002079]
[1722398746635,0.93111422,66191.0,66190.0,0.002079]
[1722398747144,0.92956002,66191.0,66190.0,0.002079]
[1722398747553,0.93111422,66191.0,66190.0,0.002079]
[1722398747731,0.93311422,66191.0,66190.0,0.002079]
[1722398747933,1.23526922,66191.0,66190.0,0.002079]
[1722398748157,1.23171502,66191.0,66190.0,0.002079]
[1722398748370,1.23168755,66191.0,66190.0,0.001079]
[1722398748567,1.51693631,66191.0,66190.0,0.001079]
[1722398748768,1.51693631,66191.0,66190.0,0.002079]
[1722398749172,1.37038755,66191.0,66190.0,0.002079]
[1722398749414,1.37038755,66191.0,66190.0,0.001079]
[1722398749625,1.37238755,66191.0,66190.0,0.001079]
[1722398749848,1.37238755,66191.0,66190.0,0.002079]
[1722398750247,1.37238755,66191.0,66190.0,0.001079]
[1722398750794,1.37038755,66191.0,66190.0,0.001079]
[1722398751214,1.37338755,66191.0,66190.0,0.001079]
[1722398751426,1.37038755,66191.0,66190.0,0.001079]
[1722398751637,1.21232608,66191.0,66190.0,0.001079]
[1722398751845,1.37517268,66191.0,66190.0,0.001079]
[1722398752228,1.37390859,66191.0,66190.0,0.001079]
[1722398752432,1.37390859,66191.0,66190.0,0.002079]
[1722398752926,1.37390859,66191.0,66190.0,0.001079]
[1722398753297,1.37390859,66191.0,66190.0,0.002079]
[1722398754170,1.52394165,66191.0,66190.0,0.002079]
[1722398754859,1.3620204,66191.0,66190.0,0.002079]
[1722398755068,1.37124769,66191.0,66190.0,0.001079]
[1722398755997,1.37124769,66191.0,66190.0,0.002079]
[1722398756351,1.37124769,66191.0,66190.0,0.001079]
[1722398756754,1.37124769,66191.0,66190.0,0.002079]
[1722398756914,1.38010004,66191.0,66190.0,0.002079]
[1722398757940,1.38210004,66191.0,66190.0,0.001079]
[1722398758346,1.38210004,66191.0,66190.0,0.002079]
[1722398758347,1.38217191,66191.0,66190.0,0.002079]
[1722398758756,1.38017191,66191.0,66190.0,0.002079]
[1722398759684,1.60268951,66191.0,66190.0,0.002079]
[1722398760438,1.38017191,66191.0,66190.0,0.002079]
[1722398760659,1.60285962,66191.0,66190.0,0.002079]
[1722398760863,1.60285962,66191.0,66190.0,0.001079]
[1722398761083,1.44286614,66191.0,66190.0,0.001079]
[1722398761334,1.60245197,66191.0,66190.0,0.002079]
[1722398761716,1.60245197,66191.0,66190.0,0.001079]
[1722398761717,1.38176166,66191.0,66190.0,0.001079]
[1722398762091,1.37976166,66191.0,66190.0,0.002079]
[1722398762302,1.22017843,66191.0,66190.0,0.002079]
[1722398762478,1.37989242,66191.0,66190.0,0.002079]
[1722398762673,1.60254432,66191.0,66190.0,0.002079]
[1722398763512,1.22017843,66191.0,66190.0,0.002079]
[1722398763712,1.37943073,66191.0,66190.0,0.002079]
[1722398763936,1.22017843,66191.0,66190.0,0.002079]
[1722398764140,1.22017843,66191.0,66190.0,0.001079]
[1722398764141,1.60205133,66191.0,66190.0,0.001079]
[1722398764598,1.60205133,66191.0,66190.0,0.002079]
[1722398764882,1.60205133,66191.0,66190.0,0.001079]
[1722398765093,1.60405133,66191.0,66190.0,0.001079]
[1722398765297,1.60205133,66191.0,66190.0,0.002079]
[1722398765946,1.60360553,66191.0,66190.0,0.002079]
[1722398766194,1.29343404,66191.0,66190.0,0.002079]
[1722398766370,1.29187984,66191.0,66190.0,0.002079]
[1722398766640,1.23187984,66191.0,66190.0,0.002079]
[1722398767068,0.22878894,66191.0,66190.0,0.142279]
[1722398767283,0.22981849,66191.0,66190.0,0.142279]
[1722398767496,0.53197349,66191.0,66190.0,0.141279]
[1722398767717,0.53041929,66191.0,66190.0,0.080779]
[1722398767920,0.53041929,66191.0,66190.0,0.001079]
[1722398767921,0.9287045,66191.0,66190.0,0.001079]
[1722398768150,0.9297045,66191.0,66190.0,0.001079]
[1722398768764,0.9287045,66191.0,66190.0,0.001079]
[1722398769031,1.2308595,66191.0,66190.0,0.002079]
[1722398769242,1.2324137,66191.0,66190.0,0.002079]
[1722398769891,1.2308595,66191.0,66190.0,0.002079]
[1722398770100,1.2324137,66191.0,66190.0,0.002079]
[1722398770335,1.2324137,66191.0,66190.0,0.001079]
[1722398770571,1.07262608,66191.0,66190.0,0.001079]
[1722398770805,1.23257459,66191.0,66190.0,0.002079]
[1722398771070,1.23257384,66191.0,66190.0,0.002079]
[1722398771774,1.45364486,66191.0,66190.0,0.002079]
[1722398772262,1.37741964,66191.0,66190.0,0.002079]
[1722398773683,1.21902608,66191.0,66190.0,0.002079]
[1722398773913,1.37633932,66191.0,66190.0,0.002079]
[1722398774181,1.37833932,66191.0,66190.0,0.001079]
[1722398774422,1.92608425,66191.0,66190.0,0.002079]
[1722398774658,1.93208425,66191.0,66190.0,0.002079]
[1722398774882,1.93208425,66191.0,66190.0,0.001079]
[1722398775135,1.92608425,66191.0,66190.0,0.001079]
[1722398775417,2.1988518,66191.0,66190.0,0.001079]
[1722398775636,1.144686,66182.0,66181.0,0.00935]
[1722398775904,1.44099924,66182.0,66181.0,0.00935]
[1722398776160,2.1787596,66182.0,66181.0,0.00935]
[1722398776382,1.4552765,66182.0,66181.0,0.00935]
[1722398776955,1.75841174,66182.0,66181.0,0.00935]
[1722398777200,2.63185589,66182.0,66181.0,0.00935]
[1722398777438,1.90910606,66182.0,66181.0,0.00935]
[1722398777690,1.91310606,66182.0,66181.0,0.00935]
[1722398778194,1.91610606,66182.0,66181.0,0.00935]
[1722398778451,1.76541174,66182.0,66181.0,0.00935]
[1722398778697,1.75841174,66182.0,66181.0,0.00935]
[1722398778932,1.77341174,66182.0,66181.0,0.00935]
[1722398780330,1.77314088,66182.0,66181.0,0.00935]
[1722398780774,1.77313371,66182.0,66181.0,0.00935]
[1722398781528,1.77322532,66182.0,66181.0,0.00935]
[1722398782219,1.92391964,66182.0,66181.0,0.00935]
[1722398783464,1.61515926,66182.0,66181.0,0.00935]
[1722398783692,1.77299734,66182.0,66181.0,0.00935]
[1722398783948,1.68599734,66182.0,66181.0,0.00935]
[1722398784710,1.77299734,66182.0,66181.0,0.00935]
[1722398784899,1.99538804,66182.0,66181.0,0.00935]
[1722398786158,1.77299734,66182.0,66181.0,0.00935]
[1722398786405,1.99540644,66182.0,66181.0,0.00935]
[1722398786633,1.92369166,66182.0,66181.0,0.00935]
[1722398786874,1.9233656,66182.0,66181.0,0.00935]
[1722398787121,1.9083656,66182.0,66181.0,0.00935]
[1722398787591,1.9233656,66182.0,66181.0,0.00935]
[1722398788085,1.9153656,66182.0,66181.0,0.00935]
[1722398788550,1.9203656,66182.0,66181.0,0.00935]
[1722398789791,1.76967128,66182.0,66181.0,0.00935]
[1722398790021,1.76935772,66182.0,66181.0,0.00935]
[1722398790453,1.61015424,66182.0,66181.0,0.00935]
[1722398790669,1.76790927,66182.0,66181.0,0.00935]
[1722398793345,1.61015424,66182.0,66181.0,0.00935]
[1722398793578,1.76709806,66182.0,66181.0,0.00935]
[1722398796754,1.7666686,66182.0,66181.0,0.00935]
[1722398797474,1.9712653,66182.0,66181.0,0.00935]
[1722398797952,1.8666686,66182.0,66181.0,0.00935]
[1722398799462,2.0360686,66182.0,66181.0,0.00935]
[1722398799733,1.9490686,66182.0,66181.0,0.00935]
[1722398799969,2.0360686,66182.0,66181.0,0.00935]
[1722398800437,2.02582381,66182.0,66181.0,0.00935]
[1722398800646,2.13528012,66182.0,66181.0,0.00935]
[1722398800848,2.15428012,66182.0,66181.0,0.00935]
[1722398801465,2.02082381,66182.0,66181.0,0.00935]
[1722398801790,2.03982381,66182.0,66181.0,0.00935]
[1722398801998,2.02982381,66182.0,66181.0,0.00935]
[1722398802239,2.03256768,66182.0,66181.0,0.00935]
[1722398803019,2.03322557,66182.0,66181.0,0.00935]
[1722398803813,2.02122557,66182.0,66181.0,0.00935]
[1722398804019,2.03522557,66182.0,66181.0,0.00935]
[1722398804437,2.04922557,66182.0,66181.0,0.00935]
[1722398804652,2.04922557,66182.0,66181.0,0.009462]
[1722398804851,2.03522557,66182.0,66181.0,0.009462]
[1722398805027,2.04822557,66182.0,66181.0,0.009462]
[1722398805562,2.19891989,66182.0,66181.0,0.009462]
[1722398806301,2.04524856,66182.0,66181.0,0.009462]
[1722398806514,2.20026972,66182.0,66181.0,0.009462]
[1722398806719,2.95162155,66182.0,66181.0,0.009462]
[1722398806890,2.93862155,66182.0,66181.0,0.009462]
[1722398808369,2.95262155,66182.0,66181.0,0.009462]
[1722398809380,2.79760039,66182.0,66181.0,0.009462]
[1722398809581,2.80180319,66182.0,66181.0,0.009462]
[1722398809788,2.81126519,66182.0,66181.0,0.009462]
[1722398810015,2.65636807,66182.0,66181.0,0.009462]
[1722398810217,2.81126364,66182.0,66181.0,0.009462]
[1722398811970,2.8133855,66182.0,66181.0,0.009462]
[1722398812774,2.81361301,66182.0,66181.0,0.009462]